bitfinex/quotes_BTCUSD_20250105
["timestamp","ask_amount","ask_price","bid_price","bid_amount"]
[1736058162529,0.00013475,98376.0,98375.0,0.203303]
[1736058162884,0.00013475,98376.0,98375.0,0.4069438]
[1736058163168,0.00013475,98376.0,98375.0,0.4760438]
[1736058165195,0.00013475,98376.0,98375.0,0.9760438]
[1736058165410,0.00013475,98376.0,98375.0,0.9790438]
[1736058165582,0.00013475,98376.0,98375.0,0.9760438]
[1736058166013,0.00013475,98376.0,98375.0,0.9830438]
[1736058169431,0.00013475,98376.0,98375.0,0.9810438]
[1736058169677,0.00013475,98376.0,98375.0,0.9760438]
[1736058170142,0.00013475,98376.0,98375.0,0.9820438]
[1736058170960,0.00013475,98376.0,98375.0,0.9850438]
[1736058171389,0.00013475,98376.0,98375.0,0.9760438]
[1736058171816,0.00013475,98376.0,98375.0,0.9790438]
[1736058172070,0.00013475,98376.0,98375.0,0.9850438]
[1736058187408,0.00013475,98376.0,98375.0,0.9760438]
[1736058187552,0.00013475,98376.0,98375.0,0.9820438]
[1736058187729,0.00013475,98376.0,98375.0,0.9850438]
[1736058190443,0.00013475,98376.0,98375.0,0.15083412]
[1736058190570,0.00013475,98376.0,98375.0,0.37187679]
[1736058190779,0.00013475,98376.0,98375.0,0.37086049]
[1736058191660,0.00013475,98376.0,98375.0,0.83301249]
[1736058193436,0.00013475,98376.0,98375.0,0.90941249]
[1736058196577,0.00013475,98376.0,98375.0,0.91617249]
[1736058196996,0.00013475,98376.0,98375.0,1.06617249]
[1736058199241,0.00013475,98376.0,98375.0,1.06634329]
[1736058200816,0.00013475,98376.0,98375.0,1.09748056]
[1736058201899,0.00013475,98376.0,98375.0,1.18884139]
[1736058202140,0.00013475,98376.0,98375.0,1.18884213]
[1736058202919,0.00013475,98376.0,98375.0,1.15770412]
[1736058203376,0.00013475,98376.0,98375.0,1.06634329]
[1736058204633,0.00013475,98376.0,98375.0,1.20338454]
[1736058206183,0.00013475,98376.0,98375.0,1.37766397]
[1736058209693,0.00013475,98376.0,98375.0,1.4088055]
[1736058209922,0.00013475,98376.0,98375.0,1.37766397]
[1736058210321,0.0803854,98397.0,98385.0,0.1]
[1736058210520,0.0803854,98397.0,98396.0,0.20326]
[1736058210715,0.0803854,98397.0,98396.0,0.33069827]
[1736058212140,0.0803854,98397.0,98396.0,0.12067827]
[1736058212351,0.1294854,98397.0,98396.0,0.12743827]
[1736058212906,0.1294854,98397.0,98396.0,0.62743827]
[1736058213163,0.1294854,98397.0,98396.0,0.63870242]
[1736058213504,0.1294854,98397.0,98396.0,0.63770242]
[1736058213716,0.1294854,98397.0,98396.0,0.63870242]
[1736058213973,0.1294854,98397.0,98396.0,0.63770242]
[1736058214350,0.1294854,98397.0,98396.0,0.63970242]
[1736058214956,0.1294854,98397.0,98396.0,0.64070242]
[1736058216256,0.0803854,98397.0,98396.0,0.63970242]
[1736058216694,0.0803854,98397.0,98396.0,0.63870242]
[1736058216901,0.0803854,98397.0,98396.0,0.63970242]
[1736058218243,0.0803854,98397.0,98396.0,0.63770242]
[1736058218655,0.0803854,98397.0,98396.0,0.64170242]
[1736058219607,0.0803854,98397.0,98396.0,0.64070242]
[1736058219818,0.0803854,98397.0,98396.0,0.64170242]
[1736058220037,0.0803854,98397.0,98396.0,0.63870242]
[1736058220165,0.0803854,98397.0,98396.0,0.64170242]
[1736058221015,0.0803854,98397.0,98396.0,0.63870242]
[1736058221192,0.0803854,98397.0,98396.0,0.63770242]
[1736058221415,8.54e-05,98397.0,98396.0,0.64170242]
[1736058222018,8.54e-05,98397.0,98396.0,0.64070242]
[1736058222538,8.54e-05,98397.0,98396.0,0.64170242]
[1736058222940,8.54e-05,98397.0,98396.0,0.78770242]
[1736058223346,8.54e-05,98397.0,98396.0,0.79070242]
[1736058223554,8.54e-05,98397.0,98396.0,0.78770242]
[1736058223934,8.54e-05,98397.0,98396.0,0.79070242]
[1736058224132,8.54e-05,98397.0,98396.0,0.78770242]
[1736058224427,8.54e-05,98397.0,98396.0,0.78870242]
[1736058224571,8.54e-05,98397.0,98396.0,0.92070242]
[1736058224770,8.54e-05,98397.0,98396.0,0.91970242]
[1736058225034,8.54e-05,98397.0,98396.0,0.92370242]
[1736058225373,8.54e-05,98397.0,98396.0,1.46857378]
[1736058225581,8.54e-05,98397.0,98396.0,1.46457378]
[1736058225905,8.54e-05,98397.0,98396.0,1.46857378]
[1736058226104,8.54e-05,98397.0,98396.0,1.45957378]
[1736058226553,8.54e-05,98397.0,98396.0,2.54701067]
[1736058226763,8.54e-05,98397.0,98396.0,2.67311067]
[1736058226988,8.54e-05,98397.0,98396.0,2.66411067]
[1736058227140,8.54e-05,98397.0,98396.0,2.67311067]
[1736058227368,8.54e-05,98397.0,98396.0,2.66911067]
[1736058227563,8.54e-05,98397.0,98396.0,2.48160962]
[1736058227733,8.54e-05,98397.0,98396.0,2.49060962]
[1736058228602,8.54e-05,98397.0,98396.0,2.38974262]
[1736058228812,8.54e-05,98397.0,98396.0,2.26974262]
[1736058229263,8.54e-05,98397.0,98396.0,2.24298862]
[1736058232309,8.54e-05,98397.0,98396.0,2.23622862]
[1736058232520,8.54e-05,98397.0,98396.0,2.47094929]
[1736058233601,8.54e-05,98397.0,98396.0,1.84659129]
[1736058233798,8.54e-05,98397.0,98396.0,1.95300729]
[1736058234023,8.54e-05,98397.0,98396.0,1.72504662]
[1736058234229,8.54e-05,98397.0,98396.0,1.72147662]
[1736058235126,8.54e-05,98397.0,98396.0,1.61863062]
[1736058236195,8.54e-05,98397.0,98396.0,1.73385662]
[1736058236596,8.54e-05,98397.0,98396.0,1.91611843]
[1736058239377,8.54e-05,98397.0,98396.0,1.52238188]
[1736058239810,8.54e-05,98397.0,98396.0,1.39938188]
[1736058240004,8.54e-05,98397.0,98396.0,1.39262188]
[1736058240221,8.54e-05,98397.0,98396.0,1.24938188]
[1736058240627,8.54e-05,98397.0,98396.0,0.75070242]
[1736058240837,8.54e-05,98397.0,98396.0,0.64670242]
[1736058241233,0.0803854,98397.0,98396.0,0.65070242]
[1736058241608,0.0803854,98397.0,98396.0,0.63770242]
[1736058242023,0.0803854,98397.0,98396.0,0.64670242]
[1736058242235,0.0803854,98397.0,98396.0,0.63770242]
[1736058242460,0.0803854,98397.0,98396.0,0.63094242]
[1736058242745,0.0803854,98397.0,98396.0,0.64170242]
[1736058243124,0.0803854,98397.0,98396.0,0.64370242]
[1736058243527,0.0803854,98397.0,98396.0,0.64170242]
[1736058243749,0.0803854,98397.0,98396.0,0.64370242]
[1736058250994,0.0803854,98397.0,98396.0,0.64170242]
[1736058251888,0.0803854,98397.0,98396.0,0.63770242]
[1736058252072,0.0803854,98397.0,98396.0,0.64170242]
[1736058252487,0.0803854,98397.0,98396.0,0.64370242]
[1736058253434,0.0803854,98397.0,98396.0,0.64170242]
[1736058253648,0.0803854,98397.0,98396.0,0.64370242]
[1736058254944,0.0803854,98397.0,98396.0,0.63970242]
[1736058255152,0.0803854,98397.0,98396.0,0.64370242]
[1736058255451,0.0803854,98397.0,98396.0,0.63770242]
[1736058255743,0.0803854,98397.0,98396.0,0.64370242]
[1736058256346,0.0803854,98397.0,98396.0,0.64570242]
[1736058256552,0.0803854,98397.0,98396.0,0.64770242]
[1736058261482,0.0803854,98397.0,98396.0,0.63970242]
[1736058261908,0.0803854,98397.0,98396.0,0.64370242]
[1736058262109,0.0803854,98397.0,98396.0,0.64170242]
[1736058262317,0.0803854,98397.0,98396.0,0.64370242]
[1736058264254,0.0803854,98397.0,98396.0,0.63970242]
[1736058264453,0.0803854,98397.0,98396.0,0.63770242]
[1736058264724,0.0803854,98397.0,98396.0,0.64370242]
[1736058267360,0.0803854,98397.0,98396.0,0.63970242]
[1736058267602,0.0803854,98397.0,98396.0,0.63770242]
[1736058267777,0.0803854,98397.0,98396.0,0.64370242]
[1736058268270,0.0803854,98397.0,98396.0,0.64170242]
[1736058268616,0.0803854,98397.0,98396.0,0.63970242]
[1736058268970,0.0803854,98397.0,98396.0,0.64370242]
[1736058270462,0.0803854,98397.0,98396.0,0.63770242]
[1736058270794,0.0803854,98397.0,98396.0,0.64270242]
[1736058271382,0.0803854,98397.0,98396.0,0.64470242]
[1736058286545,0.0803854,98397.0,98396.0,0.73585812]
[1736058293171,0.0803854,98397.0,98396.0,0.64470242]
[1736058296874,0.0803854,98397.0,98396.0,0.63794242]
[1736058301271,0.0803854,98397.0,98396.0,0.5339561]
[1736058301489,0.0803854,98397.0,98396.0,0.52369195]
[1736058306012,0.0803854,98397.0,98396.0,0.52479095]
[1736058313067,0.0803854,98397.0,98396.0,0.52279095]
[1736058313473,0.0803854,98397.0,98396.0,0.52379095]
[1736058314081,0.0803854,98397.0,98396.0,0.52279095]
[1736058322597,0.02536945,98397.0,98396.0,0.52279095]
[1736058327505,0.02545495,98397.0,98396.0,0.52279095]
[1736058332826,0.02545495,98397.0,98396.0,0.51779095]
[1736058333856,8.55e-05,98397.0,98396.0,0.51779095]
[1736058338859,8.55e-05,98397.0,98396.0,0.51796175]
[1736058367848,8.55e-05,98397.0,98396.0,0.62194807]
[1736058371070,8.55e-05,98397.0,98396.0,0.62294807]
[1736058371285,8.55e-05,98397.0,98396.0,0.62194807]
[1736058371654,8.55e-05,98397.0,98396.0,0.62294807]
[1736058373237,8.55e-05,98397.0,98396.0,0.62194807]
[1736058373594,8.55e-05,98397.0,98396.0,0.62394807]
[1736058373797,8.55e-05,98397.0,98396.0,0.62294807]
[1736058374177,8.55e-05,98397.0,98396.0,0.62394807]
[1736058374581,8.55e-05,98397.0,98396.0,0.62494807]
[1736058375078,8.55e-05,98397.0,98396.0,0.62194807]
[1736058377115,8.55e-05,98397.0,98396.0,0.62494807]
[1736058386048,8.55e-05,98397.0,98396.0,0.62394807]
[1736058386250,8.55e-05,98397.0,98396.0,0.62494807]
[1736058386893,8.55e-05,98397.0,98396.0,0.62194807]
[1736058387210,8.55e-05,98397.0,98396.0,0.62494807]
[1736058387387,8.55e-05,98397.0,98396.0,0.62294807]
[1736058387765,8.55e-05,98397.0,98396.0,0.62494807]
[1736058389466,8.55e-05,98397.0,98396.0,0.62394807]
[1736058389766,8.55e-05,98397.0,98396.0,0.62494807]
[1736058389985,8.55e-05,98397.0,98396.0,0.62294807]
[1736058390736,8.55e-05,98397.0,98396.0,0.60825612]
[1736058390952,8.55e-05,98397.0,98396.0,0.62410442]
[1736058392485,8.55e-05,98397.0,98396.0,0.62310442]
[1736058392702,8.55e-05,98397.0,98396.0,0.62410442]
[1736058392893,8.55e-05,98397.0,98396.0,0.62210442]
[1736058393266,8.55e-05,98397.0,98396.0,0.62410442]
[1736058396010,8.55e-05,98397.0,98396.0,0.62110442]
[1736058396302,8.55e-05,98397.0,98396.0,0.62510442]
[1736058399699,8.55e-05,98397.0,98396.0,0.62110442]
[1736058399923,8.55e-05,98397.0,98396.0,0.62210442]
[1736058400777,8.55e-05,98397.0,98396.0,0.62110442]
[1736058403809,8.55e-05,98397.0,98396.0,0.62210442]
[1736058404409,8.55e-05,98397.0,98396.0,0.62310442]
[1736058405355,8.55e-05,98397.0,98396.0,0.62410442]
[1736058405788,8.55e-05,98397.0,98396.0,0.62310442]
[1736058406596,8.55e-05,98397.0,98396.0,0.62110442]
[1736058407012,8.55e-05,98397.0,98396.0,0.62210442]
[1736058408248,8.55e-05,98397.0,98396.0,0.62110442]
[1736058408457,8.55e-05,98397.0,98396.0,0.62310442]
[1736058408664,8.55e-05,98397.0,98396.0,0.62410442]
[1736058409452,8.55e-05,98397.0,98396.0,0.62310442]
[1736058410174,8.55e-05,98397.0,98396.0,0.62110442]
[1736058416664,8.55e-05,98397.0,98396.0,0.71016442]
[1736058416763,8.55e-05,98397.0,98396.0,0.75986442]
[1736058417729,8.55e-05,98397.0,98396.0,0.76186442]
[1736058418044,8.55e-05,98397.0,98396.0,0.76586442]
[1736058418245,8.55e-05,98397.0,98396.0,0.76386442]
[1736058418706,8.55e-05,98397.0,98396.0,1.08441848]
[1736058419054,8.55e-05,98397.0,98396.0,1.08141848]
[1736058419462,8.55e-05,98397.0,98396.0,1.08441848]
[1736058419659,8.55e-05,98397.0,98396.0,1.09141848]
[1736058419906,8.55e-05,98397.0,98396.0,1.31990759]
[1736058420033,8.55e-05,98397.0,98396.0,1.30890759]
[1736058420257,8.55e-05,98397.0,98396.0,1.31590759]
[1736058420719,8.55e-05,98397.0,98396.0,1.08441848]
[1736058421138,8.55e-05,98397.0,98396.0,1.09441848]
[1736058421329,8.55e-05,98397.0,98396.0,1.08041848]
[1736058421539,8.55e-05,98397.0,98396.0,1.08441848]
[1736058421752,8.55e-05,98397.0,98396.0,1.10504596]
[1736058421973,8.55e-05,98397.0,98396.0,1.10804596]
[1736058422387,8.55e-05,98397.0,98396.0,1.10504596]
[1736058422793,8.55e-05,98397.0,98396.0,1.10804596]
[1736058423180,8.55e-05,98397.0,98396.0,1.10104596]
[1736058423413,8.55e-05,98397.0,98396.0,1.10904596]
[1736058423940,8.55e-05,98397.0,98396.0,1.2967322]
[1736058424289,8.55e-05,98397.0,98396.0,1.2997322]
[1736058426466,8.55e-05,98397.0,98396.0,1.11704596]
[1736058431409,8.55e-05,98397.0,98396.0,1.25394924]
[1736058434229,8.55e-05,98397.0,98396.0,0.93639518]
[1736058438928,8.55e-05,98397.0,98396.0,0.7994919]
[1736058449546,8.55e-05,98397.0,98396.0,1.11665886]
[1736058451394,8.55e-05,98397.0,98396.0,1.14782773]
[1736058455427,8.55e-05,98397.0,98396.0,1.33051397]
[1736058456542,8.55e-05,98397.0,98396.0,1.14782773]
[1736058458133,8.55e-05,98397.0,98396.0,1.09812773]
[1736058459106,8.55e-05,98397.0,98396.0,1.32661684]
[1736058460461,8.55e-05,98397.0,98396.0,1.09812773]
[1736058463181,8.55e-05,98397.0,98396.0,1.01582773]
[1736058465006,8.55e-05,98397.0,98396.0,0.98465886]
[1736058466598,8.55e-05,98397.0,98396.0,0.96865886]
[1736058466949,8.55e-05,98397.0,98396.0,0.97665886]
[1736058467376,8.55e-05,98397.0,98396.0,0.97365886]
[1736058467578,8.55e-05,98397.0,98396.0,1.15658137]
[1736058467782,8.55e-05,98397.0,98396.0,1.15158137]
[1736058468013,8.55e-05,98397.0,98396.0,1.15958137]
[1736058468198,8.55e-05,98397.0,98396.0,1.15658137]
[1736058468514,8.55e-05,98397.0,98396.0,1.15958137]
[1736058468913,8.55e-05,98397.0,98396.0,1.15658137]
[1736058469262,8.55e-05,98397.0,98396.0,1.16658137]
[1736058469634,8.55e-05,98397.0,98396.0,0.98365886]
[1736058470413,8.55e-05,98397.0,98396.0,0.98065886]
[1736058470720,8.55e-05,98397.0,98396.0,0.96865886]
[1736058470914,8.55e-05,98397.0,98396.0,0.97565886]
[1736058471356,8.55e-05,98397.0,98396.0,0.97265886]
[1736058471691,8.55e-05,98397.0,98396.0,0.98265886]
[1736058472006,8.55e-05,98397.0,98396.0,0.97965886]
[1736058472209,8.55e-05,98397.0,98396.0,0.96565886]
[1736058472418,8.55e-05,98397.0,98396.0,0.96865886]
[1736058472663,8.55e-05,98397.0,98396.0,0.97565886]
[1736058473260,8.55e-05,98397.0,98396.0,1.15858137]
[1736058473880,8.55e-05,98397.0,98396.0,1.15558137]
[1736058474352,8.55e-05,98397.0,98396.0,1.15058137]
[1736058474751,8.55e-05,98397.0,98396.0,1.15458137]
[1736058476899,8.55e-05,98397.0,98396.0,1.15258137]
[1736058477090,8.55e-05,98397.0,98396.0,1.15458137]
[1736058477289,8.55e-05,98397.0,98396.0,0.97165886]
[1736058477503,8.55e-05,98397.0,98396.0,0.96765886]
[1736058478000,8.55e-05,98397.0,98396.0,0.96965886]
[1736058478162,8.55e-05,98397.0,98396.0,0.96765886]
[1736058478363,8.55e-05,98397.0,98396.0,0.97265886]
[1736058478564,8.55e-05,98397.0,98396.0,1.15558137]
[1736058479743,8.55e-05,98397.0,98396.0,1.15358137]
[1736058480090,8.55e-05,98397.0,98396.0,1.15558137]
[1736058481054,8.55e-05,98397.0,98396.0,0.97065886]
[1736058481389,8.55e-05,98397.0,98396.0,0.96765886]
[1736058481572,8.55e-05,98397.0,98396.0,0.97365886]
[1736058482291,8.55e-05,98397.0,98396.0,0.96765886]
[1736058482621,8.55e-05,98397.0,98396.0,0.79461689]
[1736058482791,8.55e-05,98397.0,98396.0,0.79261689]
[1736058483196,8.55e-05,98397.0,98396.0,0.79561689]
[1736058483798,8.55e-05,98397.0,98396.0,0.79261689]
[1736058483973,8.55e-05,98397.0,98396.0,0.79561689]
[1736058484358,8.55e-05,98397.0,98396.0,0.78861689]
[1736058484530,8.55e-05,98397.0,98396.0,0.79561689]
[1736058486177,8.55e-05,98397.0,98396.0,0.79261689]
[1736058486579,8.55e-05,98397.0,98396.0,0.79561689]
[1736058487051,8.55e-05,98397.0,98396.0,0.78561689]
[1736058487380,8.55e-05,98397.0,98396.0,0.79561689]
[1736058489317,8.55e-05,98397.0,98396.0,1.15219339]
[1736058489516,8.55e-05,98397.0,98396.0,1.13832591]
[1736058489724,0.0812855,98397.0,98396.0,1.13832591]
[1736058490334,0.0812855,98397.0,98396.0,1.13532591]
[1736058490668,0.0812855,98397.0,98396.0,1.13032591]
[1736058490874,0.0812855,98397.0,98396.0,1.13632591]
[1736058491085,0.0812855,98397.0,98396.0,0.63586442]
[1736058492248,0.0812855,98397.0,98396.0,0.63386442]
[1736058492462,0.0812855,98397.0,98396.0,0.63586442]
[1736058493238,0.0812855,98397.0,98396.0,0.62986442]
[1736058494122,0.0812855,98397.0,98396.0,0.63486442]
[1736058495593,0.0812855,98397.0,98396.0,0.63286442]
[1736058496006,0.0812855,98397.0,98396.0,0.63486442]
[1736058496368,0.0812855,98397.0,98396.0,0.62986442]
[1736058496764,0.0812855,98397.0,98396.0,0.63586442]
[1736058498115,0.0812855,98397.0,98396.0,0.62986442]
[1736058498284,0.0812855,98397.0,98396.0,0.63286442]
[1736058498493,0.0812855,98397.0,98396.0,0.63486442]
[1736058502061,0.0812855,98397.0,98396.0,0.63286442]
[1736058502492,0.0812855,98397.0,98396.0,0.63486442]
[1736058502870,0.0812855,98397.0,98396.0,0.62986442]
[1736058503255,0.0812855,98397.0,98396.0,0.63486442]
[1736058506979,0.0812855,98397.0,98396.0,0.62986442]
[1736058507187,8.55e-05,98397.0,98396.0,0.62986442]
[1736058507531,8.55e-05,98397.0,98396.0,0.63286442]
[1736058507694,8.55e-05,98397.0,98396.0,0.63486442]
[1736058508444,8.55e-05,98397.0,98396.0,0.63286442]
[1736058508739,8.55e-05,98397.0,98396.0,0.63486442]
[1736058509265,8.55e-05,98397.0,98396.0,0.62986442]
[1736058509459,8.55e-05,98397.0,98396.0,0.63386442]
[1736058509689,8.55e-05,98397.0,98396.0,0.72527394]
[1736058510164,8.55e-05,98397.0,98396.0,0.72127394]
[1736058510541,8.55e-05,98397.0,98396.0,0.63486442]
[1736058511026,8.55e-05,98397.0,98396.0,0.63286442]
[1736058511445,8.55e-05,98397.0,98396.0,0.63486442]
[1736058511862,8.55e-05,98397.0,98396.0,0.63286442]
[1736058512090,8.55e-05,98397.0,98396.0,0.72427394]
[1736058512264,8.55e-05,98397.0,98396.0,0.72627394]
[1736058512609,8.55e-05,98397.0,98396.0,0.71951394]
[1736058512880,8.55e-05,98397.0,98396.0,0.72627394]
[1736058513097,8.55e-05,98397.0,98396.0,0.72127394]
[1736058513276,8.55e-05,98397.0,98396.0,0.62986442]
[1736058513486,8.55e-05,98397.0,98396.0,0.63386442]
[1736058514115,8.55e-05,98397.0,98396.0,0.63186442]
[1736058514311,8.55e-05,98397.0,98396.0,0.62786442]
[1736058514460,8.55e-05,98397.0,98396.0,0.63186442]
[1736058514988,8.55e-05,98397.0,98396.0,0.62786442]
[1736058515123,8.55e-05,98397.0,98396.0,0.62886442]
[1736058515830,8.55e-05,98397.0,98396.0,0.72030457]
[1736058516262,8.55e-05,98397.0,98396.0,0.72330457]
[1736058517793,8.55e-05,98397.0,98396.0,0.61931825]
[1736058518200,8.55e-05,98397.0,98396.0,0.61255825]
[1736058518357,0.1253855,98397.0,98396.0,0.61255825]
[1736058519707,0.1253855,98397.0,98396.0,0.5211181]
[1736058521694,0.1253855,98397.0,98396.0,0.5201181]
[1736058521957,0.1253855,98397.0,98396.0,0.5211181]
[1736058522389,0.1253855,98397.0,98396.0,0.5201181]
[1736058522775,0.1253855,98397.0,98396.0,0.5211181]
[1736058522975,0.1253855,98397.0,98396.0,0.5181181]
[1736058523374,0.1253855,98397.0,98396.0,0.5201181]
[1736058523577,0.1253855,98397.0,98396.0,0.5181181]
[1736058523936,0.1253855,98397.0,98396.0,0.5201181]
[1736058524083,0.1253855,98397.0,98396.0,0.5191181]
[1736058524312,0.1253855,98397.0,98396.0,0.5201181]
[1736058524531,0.1253855,98397.0,98396.0,0.5211181]
[1736058524681,0.1253855,98397.0,98396.0,0.5201181]
[1736058526170,0.1253855,98397.0,98396.0,0.5171181]
[1736058526376,0.1253855,98397.0,98396.0,0.5181181]
[1736058526907,0.1253855,98397.0,98396.0,0.5191181]
[1736058530757,0.1253855,98397.0,98396.0,0.5171181]
[1736058537144,0.0755855,98397.0,98396.0,0.5171181]
[1736058537562,8.55e-05,98397.0,98396.0,0.5171181]
[1736058542384,8.55e-05,98397.0,98396.0,0.5181181]
[1736058545713,8.55e-05,98397.0,98396.0,0.5171181]
[1736058546626,8.55e-05,98397.0,98396.0,0.5181181]
[1736058547281,8.55e-05,98397.0,98396.0,0.5171181]
[1736058548088,8.55e-05,98397.0,98396.0,0.62110442]
[1736058548657,8.55e-05,98397.0,98396.0,0.62210442]
[1736058549606,8.55e-05,98397.0,98396.0,0.62110442]
[1736058549928,8.55e-05,98397.0,98396.0,0.62210442]
[1736058550167,8.55e-05,98397.0,98396.0,0.62310442]
[1736058550334,8.55e-05,98397.0,98396.0,0.62210442]
[1736058550551,8.55e-05,98397.0,98396.0,0.62410442]
[1736058550922,8.55e-05,98397.0,98396.0,0.62510442]
[1736058551960,8.55e-05,98397.0,98396.0,0.62210442]
[1736058552163,8.55e-05,98397.0,98396.0,0.62610442]
[1736058552332,8.55e-05,98397.0,98396.0,0.62510442]
[1736058552722,8.55e-05,98397.0,98396.0,0.62610442]
[1736058555507,8.55e-05,98397.0,98396.0,0.62210442]
[1736058555707,8.55e-05,98397.0,98396.0,0.62610442]
[1736058556614,8.55e-05,98397.0,98396.0,0.62110442]
[1736058556832,8.55e-05,98397.0,98396.0,0.62510442]
[1736058557595,8.55e-05,98397.0,98396.0,0.62610442]
[1736058558042,8.55e-05,98397.0,98396.0,0.62510442]
[1736058558251,8.55e-05,98397.0,98396.0,0.62210442]
[1736058558453,8.55e-05,98397.0,98396.0,0.62610442]
[1736058559149,8.55e-05,98397.0,98396.0,0.63010442]
[1736058559329,8.55e-05,98397.0,98396.0,0.70560442]
[1736058559612,8.55e-05,98397.0,98396.0,0.70460442]
[1736058559855,8.55e-05,98397.0,98396.0,0.70560442]
[1736058560478,8.55e-05,98397.0,98396.0,0.70460442]
[1736058560784,8.55e-05,98397.0,98396.0,0.70560442]
[1736058561349,8.55e-05,98397.0,98396.0,0.69760442]
[1736058561561,8.55e-05,98397.0,98396.0,0.69960442]
[1736058562374,8.55e-05,98397.0,98396.0,0.69760442]
[1736058562582,8.55e-05,98397.0,98396.0,0.69660442]
[1736058562774,8.55e-05,98397.0,98396.0,0.69760442]
[1736058566010,8.55e-05,98397.0,98396.0,0.69660442]
[1736058566365,8.55e-05,98397.0,98396.0,0.69960442]
[1736058567357,8.55e-05,98397.0,98396.0,0.69860442]
[1736058567665,8.55e-05,98397.0,98396.0,0.69760442]
[1736058567908,8.55e-05,98397.0,98396.0,0.69960442]
[1736058568792,8.55e-05,98397.0,98396.0,0.69660442]
[1736058568978,8.55e-05,98397.0,98396.0,0.69860442]
[1736058569174,8.55e-05,98397.0,98396.0,0.69960442]
[1736058570367,8.55e-05,98397.0,98396.0,0.62410442]
[1736058570964,8.55e-05,98397.0,98396.0,0.60825612]
[1736058571165,8.55e-05,98397.0,98396.0,0.62406534]
[1736058571363,8.55e-05,98397.0,98396.0,0.62206534]
[1736058571501,8.55e-05,98397.0,98396.0,0.62406534]
[1736058572122,8.55e-05,98397.0,98396.0,0.62306534]
[1736058572328,8.55e-05,98397.0,98396.0,0.62406534]
[1736058572974,8.55e-05,98397.0,98396.0,0.62106534]
[1736058573187,8.55e-05,98397.0,98396.0,0.62206534]
[1736058574385,8.55e-05,98397.0,98396.0,0.62406534]
[1736058575204,8.55e-05,98397.0,98396.0,0.62306534]
[1736058575531,8.55e-05,98397.0,98396.0,0.63082534]
[1736058575726,8.55e-05,98397.0,98396.0,0.62882534]
[1736058575935,8.55e-05,98397.0,98396.0,0.63082534]
[1736058576651,8.55e-05,98397.0,98396.0,0.62982534]
[1736058577370,8.55e-05,98397.0,98396.0,0.62782534]
[1736058577571,8.55e-05,98397.0,98396.0,0.62882534]
[1736058577826,8.55e-05,98397.0,98396.0,0.63082534]
[1736058580247,8.55e-05,98397.0,98396.0,0.62982534]
[1736058580449,8.55e-05,98397.0,98396.0,0.62782534]
[1736058580635,8.55e-05,98397.0,98396.0,0.62882534]
[1736058580838,8.55e-05,98397.0,98396.0,0.63082534]
[1736058584149,8.55e-05,98397.0,98396.0,0.62882534]
[1736058584480,8.55e-05,98397.0,98396.0,0.62982534]
[1736058585247,8.55e-05,98397.0,98396.0,0.62882534]
[1736058585670,8.55e-05,98397.0,98396.0,0.62982534]
[1736058587137,8.55e-05,98397.0,98396.0,0.62882534]
[1736058587852,8.55e-05,98397.0,98396.0,0.62782534]
[1736058588279,8.55e-05,98397.0,98396.0,0.62882534]
[1736058588431,8.55e-05,98397.0,98396.0,0.62982534]
[1736058589623,8.55e-05,98397.0,98396.0,0.62882534]
[1736058590555,8.55e-05,98397.0,98396.0,0.62982534]
[1736058591111,8.55e-05,98397.0,98396.0,0.62882534]
[1736058591340,8.55e-05,98397.0,98396.0,0.63082534]
[1736058592027,8.55e-05,98397.0,98396.0,0.63182534]
[1736058592364,8.55e-05,98397.0,98396.0,0.63282534]
[1736058602164,8.55e-05,98397.0,98396.0,0.76292534]
[1736058603234,8.55e-05,98397.0,98396.0,0.76192534]
[1736058603379,8.55e-05,98397.0,98396.0,0.75516534]
[1736058603615,8.55e-05,98397.0,98396.0,0.76192534]
[1736058604324,8.55e-05,98397.0,98396.0,0.75792534]
[1736058604535,8.55e-05,98397.0,98396.0,0.75992534]
[1736058604716,8.55e-05,98397.0,98396.0,1.0878551]
[1736058604963,8.55e-05,98397.0,98396.0,1.0858551]
[1736058605274,8.55e-05,98397.0,98396.0,1.0928551]
[1736058605470,8.55e-05,98397.0,98396.0,1.0888551]
[1736058605910,8.55e-05,98397.0,98396.0,1.0948551]
[1736058606105,8.55e-05,98397.0,98396.0,1.0978551]
[1736058607403,8.55e-05,98397.0,98396.0,1.0818551]
[1736058607616,8.55e-05,98397.0,98396.0,1.0908551]
[1736058607777,8.55e-05,98397.0,98396.0,1.0948551]
[1736058608418,8.55e-05,98397.0,98396.0,1.0858551]
[1736058608635,8.55e-05,98397.0,98396.0,1.31413678]
[1736058608978,8.55e-05,98397.0,98396.0,1.31913678]
[1736058609155,8.55e-05,98397.0,98396.0,1.32313678]
[1736058611705,8.55e-05,98397.0,98396.0,1.0948551]
[1736058613987,8.55e-05,98397.0,98396.0,1.27733017]
[1736058616847,8.55e-05,98397.0,98396.0,1.27333017]
[1736058617069,8.55e-05,98397.0,98396.0,1.26833017]
[1736058617488,8.55e-05,98397.0,98396.0,1.0948551]
[1736058617689,8.55e-05,98397.0,98396.0,1.1178551]
[1736058618556,8.55e-05,98397.0,98396.0,1.1048551]
[1736058618957,8.55e-05,98397.0,98396.0,1.1138551]
[1736058620111,8.55e-05,98397.0,98396.0,1.1178551]
[1736058620311,8.55e-05,98397.0,98396.0,1.1138551]
[1736058620753,8.55e-05,98397.0,98396.0,1.1088551]
[1736058621181,8.55e-05,98397.0,98396.0,1.1178551]
[1736058623696,8.55e-05,98397.0,98396.0,1.1138551]
[1736058623926,8.55e-05,98397.0,98396.0,1.2088551]
[1736058624229,8.55e-05,98397.0,98396.0,1.2178551]
[1736058627766,8.55e-05,98397.0,98396.0,1.40033017]
[1736058628183,8.55e-05,98397.0,98396.0,1.39633017]
[1736058628359,8.55e-05,98397.0,98396.0,1.38733017]
[1736058628729,8.55e-05,98397.0,98396.0,1.39633017]
[1736058629810,8.55e-05,98397.0,98396.0,1.40033017]
[1736058630278,8.55e-05,98397.0,98396.0,1.39633017]
[1736058630456,8.55e-05,98397.0,98396.0,1.40033017]
[1736058630890,8.55e-05,98397.0,98396.0,1.39133017]
[1736058631468,8.55e-05,98397.0,98396.0,1.40033017]
[1736058631673,8.55e-05,98397.0,98396.0,1.38733017]
[1736058632078,8.55e-05,98397.0,98396.0,1.2138551]
[1736058633298,8.55e-05,98397.0,98396.0,1.44213678]
[1736058634244,8.55e-05,98397.0,98396.0,1.44713678]
[1736058634447,8.55e-05,98397.0,98396.0,1.43813678]
[1736058634854,8.55e-05,98397.0,98396.0,1.44713678]
[1736058635054,8.55e-05,98397.0,98396.0,1.43813678]
[1736058635486,8.55e-05,98397.0,98396.0,1.44713678]
[1736058635660,8.55e-05,98397.0,98396.0,1.44213678]
[1736058635868,8.55e-05,98397.0,98396.0,1.44713678]
[1736058636281,8.55e-05,98397.0,98396.0,1.2098551]
[1736058636679,8.55e-05,98397.0,98396.0,1.240983]
[1736058636978,8.55e-05,98397.0,98396.0,1.2098551]
[1736058637298,8.55e-05,98397.0,98396.0,1.46927994]
[1736058637511,8.55e-05,98397.0,98396.0,1.46427994]
[1736058637718,8.55e-05,98397.0,98396.0,1.47827994]
[1736058638155,8.55e-05,98397.0,98396.0,1.48227994]
[1736058638584,8.55e-05,98397.0,98396.0,1.48727994]
[1736058639536,8.55e-05,98397.0,98396.0,1.25717994]
[1736058639987,8.55e-05,98397.0,98396.0,0.9977551]
[1736058641333,8.55e-05,98397.0,98396.0,1.028892]
[1736058641535,8.55e-05,98397.0,98396.0,0.9977551]
[1736058642281,8.55e-05,98397.0,98396.0,1.22583118]
[1736058645166,8.55e-05,98397.0,98396.0,0.9977551]
[1736058647568,8.55e-05,98397.0,98396.0,1.02889105]
[1736058652266,8.55e-05,98397.0,98396.0,0.9977551]
[1736058653962,8.55e-05,98397.0,98396.0,1.02889371]
[1736058655078,8.55e-05,98397.0,98396.0,0.9977551]
[1736058655941,8.55e-05,98397.0,98396.0,1.02889298]